bitfinex/quotes_BTCUSD_20240602
["timestamp","ask_amount","ask_price","bid_price","bid_amount"]
[1717315780187,0.40689343,67784.0,67783.0,0.21008552]
[1717315780359,0.61881642,67784.0,67783.0,0.057]
[1717315780558,0.79273071,67784.0,67783.0,0.057]
[1717315781096,0.83700156,67784.0,67783.0,0.057]
[1717315781338,0.79273071,67784.0,67783.0,0.027]
[1717315781584,0.79673071,67784.0,67783.0,0.03]
[1717315781793,0.79673071,67784.0,67783.0,0.003]
[1717315781994,0.79873071,67784.0,67783.0,0.006]
[1717315782838,0.79673071,67784.0,67783.0,0.003]
[1717315783452,0.147544,67776.0,67775.0,0.05150467]
[1717315784060,0.147544,67776.0,67775.0,0.00170467]
[1717315784270,0.147544,67776.0,67775.0,0.05150467]
[1717315784473,0.1544403,67776.0,67775.0,0.05150467]
[1717315784676,0.147544,67776.0,67775.0,0.07050467]
[1717315784875,0.1544403,67776.0,67775.0,0.07050467]
[1717315785084,0.147544,67776.0,67775.0,0.07050467]
[1717315785898,0.15439995,67776.0,67775.0,0.07050467]
[1717315786100,0.15439995,67776.0,67775.0,0.08450467]
[1717315791725,0.147544,67776.0,67775.0,0.08450467]
[1717315793770,0.147544,67776.0,67775.0,0.03470467]
[1717315793959,0.147544,67776.0,67775.0,0.08450467]
[1717315797045,0.147544,67776.0,67775.0,0.03470467]
[1717315799185,0.147544,67776.0,67775.0,0.08450467]
[1717315802653,0.147544,67776.0,67775.0,0.07200467]
[1717315806646,0.147544,67776.0,67775.0,0.07090467]
[1717315807925,0.147544,67776.0,67775.0,0.02110467]
[1717315808136,0.147544,67776.0,67775.0,0.07090467]
[1717315808923,0.147544,67776.0,67775.0,0.02110467]
[1717315809128,0.147544,67776.0,67775.0,0.07090467]
[1717315809731,0.147544,67776.0,67775.0,0.02110467]
[1717315810067,0.147544,67776.0,67775.0,0.07090467]
[1717315810496,0.147544,67776.0,67775.0,0.02110467]
[1717315810831,0.147544,67776.0,67775.0,0.07090467]
[1717315814498,0.147544,67776.0,67775.0,0.02110467]
[1717315819372,0.17506545,67776.0,67775.0,0.02110467]
[1717315820422,0.147544,67776.0,67775.0,0.02110467]
[1717315821137,0.17505772,67776.0,67775.0,0.02110467]
[1717315824481,0.17506085,67776.0,67775.0,0.02110467]
[1717315825757,0.17501529,67776.0,67775.0,0.02110467]
[1717315826637,0.17454541,67776.0,67775.0,0.02110467]
[1717315830836,0.17448481,67776.0,67775.0,0.02110467]
[1717315838163,0.17439347,67776.0,67775.0,0.02110467]
[1717315839775,0.17436128,67776.0,67775.0,0.02110467]
[1717315844574,0.17407085,67776.0,67775.0,0.02110467]
[1717315846226,0.1740513,67776.0,67775.0,0.02110467]
[1717315862417,0.17374888,67776.0,67775.0,0.02110467]
[1717315863609,0.17375769,67776.0,67775.0,0.02110467]
[1717315874728,0.14707412,67776.0,67775.0,0.02110467]
[1717315874941,0.1736141,67776.0,67775.0,0.02110467]
[1717315882234,0.1804213,67776.0,67775.0,0.02110467]
[1717315885997,0.25879169,67776.0,67775.0,0.02110467]
[1717315893486,0.18039169,67776.0,67775.0,0.02110467]
[1717315905692,0.18054954,67776.0,67775.0,0.02110467]
[1717315918420,0.18063788,67776.0,67775.0,0.02110467]
[1717315918628,0.18058188,67776.0,67775.0,0.02110467]
[1717315924808,0.18055613,67776.0,67775.0,0.02110467]
[1717315927668,0.18076072,67776.0,67775.0,0.02110467]
[1717315938832,0.18139741,67776.0,67775.0,0.02110467]
[1717315948284,0.18140329,67776.0,67775.0,0.02110467]
[1717315949577,0.1814318,67776.0,67775.0,0.02110467]
[1717315959364,0.1746246,67776.0,67775.0,0.02110467]
[1717315964728,0.17476033,67776.0,67775.0,0.02110467]
[1717315966250,0.17472275,67776.0,67775.0,0.02110467]
[1717315969719,0.18172894,67776.0,67775.0,0.02110467]
[1717315970778,0.17472275,67776.0,67775.0,0.02110467]
[1717315974381,0.25392275,67776.0,67775.0,0.02110467]
[1717315975304,0.17472275,67776.0,67775.0,0.02110467]
[1717315975939,0.1747223,67776.0,67775.0,0.02110467]
[1717316016484,0.17419442,67776.0,67775.0,0.02110467]
[1717316028269,0.24535343,67776.0,67775.0,0.02110467]
[1717316031949,0.24538133,67776.0,67775.0,0.02110467]
[1717316034376,0.24571128,67776.0,67775.0,0.02110467]
[1717316038345,0.24575459,67776.0,67775.0,0.02110467]
[1717316054631,0.17422232,67776.0,67775.0,0.02110467]
[1717316061147,0.17461275,67776.0,67775.0,0.02110467]
[1717316061780,0.17456034,67776.0,67775.0,0.02110467]
[1717316062621,0.17455211,67776.0,67775.0,0.02110467]
[1717316073548,0.17458575,67776.0,67775.0,0.02110467]
[1717316078928,0.17458852,67776.0,67775.0,0.02110467]
[1717316080391,0.0275704,67776.0,67775.0,0.41038258]
[1717316080789,0.247529,67783.0,67782.0,0.4335]
[1717316081093,0.35030859,67783.0,67782.0,0.4335]
[1717316082064,0.35930859,67783.0,67782.0,0.4335]
[1717316082269,0.36330859,67783.0,67782.0,0.2676]
[1717316083521,0.36330859,67783.0,67782.0,0.19]
[1717316084289,0.36320501,67783.0,67782.0,0.19]
[1717316087394,0.36320274,67783.0,67782.0,0.19]
[1717316089428,0.36249546,67783.0,67782.0,0.19]
[1717316090728,0.36249546,67783.0,67782.0,0.4335]
[1717316090934,0.28811409,67783.0,67782.0,0.4335]
[1717316096349,0.28814034,67783.0,67782.0,0.4335]
[1717316098640,0.14061134,67783.0,67782.0,0.3559]
[1717316098839,0.04061134,67783.0,67782.0,0.4335]
[1717316099037,0.14061134,67783.0,67782.0,0.4335]
[1717316099238,0.14096764,67783.0,67782.0,0.4335]
[1717316100238,0.04096764,67783.0,67782.0,0.57927791]
[1717316100643,0.013,67783.0,67782.0,0.57927791]
[1717316101144,0.04092375,67783.0,67782.0,0.57927791]
[1717316102082,0.04092375,67783.0,67782.0,0.33577791]
[1717316108078,0.04092375,67783.0,67782.0,0.57257791]
[1717316111228,0.04092375,67783.0,67782.0,0.33577791]
[1717316113351,0.04036917,67783.0,67782.0,0.33577791]
[1717316118772,0.04035744,67783.0,67782.0,0.33577791]
[1717316119573,0.18788644,67783.0,67782.0,0.33577791]
[1717316119831,0.27488644,67783.0,67782.0,0.33577791]
[1717316120033,0.27488644,67783.0,67782.0,0.33777791]
[1717316121134,0.27488644,67783.0,67782.0,0.196]
[1717316121354,0.51438644,67783.0,67782.0,0.196]
[1717316121564,0.51438644,67783.0,67782.0,0.192]
[1717316121565,0.52438644,67783.0,67782.0,0.192]
[1717316121681,0.59387556,67783.0,67782.0,0.192]
[1717316121883,0.59987556,67783.0,67782.0,0.19]
[1717316122169,0.60487556,67783.0,67782.0,0.19]
[1717316122591,0.59387556,67783.0,67782.0,0.19]
[1717316122792,0.60687556,67783.0,67782.0,0.19]
[1717316124873,0.60698261,67783.0,67782.0,0.19]
[1717316125512,0.90204161,67783.0,67782.0,0.19]
[1717316126537,0.94628857,67783.0,67782.0,0.19]
[1717316126954,0.94588501,67783.0,67782.0,0.19]
[1717316127154,0.90163805,67783.0,67782.0,0.19]
[1717316127781,0.95143805,67783.0,67782.0,0.19]
[1717316129359,0.94143805,67783.0,67782.0,0.19]
[1717316129567,0.89163805,67783.0,67782.0,0.19]
[1717316135391,0.86445409,67783.0,67782.0,0.19]
[1717316135555,0.89163893,67783.0,67782.0,0.19]
[1717316136978,0.82227284,67783.0,67782.0,0.19]
[1717316141059,0.58277284,67783.0,67782.0,0.19]
[1717316142071,0.58276391,67783.0,67782.0,0.19]
[1717316142927,0.28770491,67783.0,67782.0,0.19]
[1717316145554,0.53730491,67783.0,67782.0,0.19]
[1717316146174,0.60469259,67783.0,67782.0,0.19]
[1717316146574,0.53730491,67783.0,67782.0,0.19]
[1717316147094,0.53674971,67783.0,67782.0,0.19]
[1717316150285,0.60051632,67783.0,67782.0,0.19]
[1717316151873,0.59051632,67783.0,67782.0,0.19]
[1717316153909,0.59065776,67783.0,67782.0,0.19]
[1717316154118,0.60065776,67783.0,67782.0,0.19]
[1717316154715,0.59065776,67783.0,67782.0,0.19]
[1717316155113,0.60065776,67783.0,67782.0,0.19]
[1717316155483,0.59065776,67783.0,67782.0,0.19]
[1717316155928,0.60065776,67783.0,67782.0,0.19]
[1717316157365,0.59065776,67783.0,67782.0,0.19]
[1717316157925,0.60065776,67783.0,67782.0,0.19]
[1717316158285,0.59065776,67783.0,67782.0,0.19]
[1717316159378,0.60065776,67783.0,67782.0,0.19]
[1717316159601,0.59065776,67783.0,67782.0,0.19]
[1717316160312,0.60065776,67783.0,67782.0,0.19]
[1717316160527,0.59065776,67783.0,67782.0,0.19]
[1717316161710,0.58978263,67783.0,67782.0,0.19]
[1717316162088,0.52674971,67783.0,67782.0,0.19]
[1717316162292,0.59070178,67783.0,67782.0,0.19]
[1717316164211,0.43300178,67783.0,67782.0,0.19]
[1717316166132,0.35110178,67783.0,67782.0,0.19]
[1717316168831,0.36110178,67783.0,67782.0,0.19]
[1717316172300,0.39537129,67783.0,67782.0,0.19]
[1717316172516,0.39535272,67783.0,67782.0,0.19]
[1717316172921,0.35065076,67783.0,67782.0,0.19]
[1717316173222,0.34925563,67783.0,67782.0,0.19]
[1717316174181,0.34923823,67783.0,67782.0,0.19]
[1717316174392,0.34923823,67783.0,67782.0,0.435]
[1717316175000,0.28668129,67783.0,67782.0,0.435]
[1717316181364,0.28664762,67783.0,67782.0,0.435]
[1717316182578,0.28666049,67783.0,67782.0,0.435]
[1717316184122,0.28666049,67783.0,67782.0,0.2723]
[1717316205780,0.28672274,67783.0,67782.0,0.2723]
[1717316209155,0.28672941,67783.0,67782.0,0.2723]
[1717316211720,0.28672941,67783.0,67782.0,0.19]
[1717316218947,0.26009655,67783.0,67782.0,0.19]
[1717316219159,0.28709327,67783.0,67782.0,0.19]
[1717316222260,0.3523756,67783.0,67782.0,0.19]
[1717316223307,0.26009655,67783.0,67782.0,0.19]
[1717316223475,0.35005834,67783.0,67782.0,0.19]
[1717316223700,0.28676217,67783.0,67782.0,0.19]
[1717316224049,0.28676203,67783.0,67782.0,0.19]
[1717316225283,0.35857861,67783.0,67782.0,0.19]
[1717316226047,0.28676203,67783.0,67782.0,0.19]
[1717316226199,0.35857863,67783.0,67782.0,0.19]
[1717316226599,0.35857863,67783.0,67778.0,0.2423]
[1717316226600,0.21148208,67783.0,67778.0,0.2423]
[1717316226804,0.147538,67779.0,67778.0,0.2423]
[1717316227012,0.17420348,67779.0,67778.0,0.2423]
[1717316227845,0.17420348,67779.0,67778.0,0.2463]
[1717316228250,0.17420348,67779.0,67778.0,0.2423]
[1717316228630,0.17420348,67779.0,67778.0,0.2463]
[1717316228829,0.17420348,67779.0,67778.0,0.2483]
[1717316230891,0.17420348,67779.0,67778.0,0.0837]
[1717316236709,0.147538,67779.0,67778.0,0.0837]
[1717316236915,0.17398683,67779.0,67778.0,0.0837]
[1717316252357,0.17398683,67779.0,67778.0,0.006]
[1717316256660,0.17398683,67779.0,67778.0,0.2392]
[1717316258067,0.17398683,67779.0,67778.0,0.0878]
[1717316258706,0.17416965,67779.0,67778.0,0.0878]
[1717316259615,0.17416965,67779.0,67778.0,0.006]
[1717316269048,0.147538,67779.0,67778.0,0.006]
[1717316269218,0.17440293,67779.0,67778.0,0.006]
[1717316279189,0.1743749,67779.0,67778.0,0.006]
[1717316280955,0.17437995,67779.0,67778.0,0.006]
[1717316282510,0.147538,67779.0,67778.0,0.006]
[1717316282709,0.17429532,67779.0,67778.0,0.006]
[1717316293442,0.17432296,67779.0,67778.0,0.006]
[1717316301617,0.86199896,67779.0,67778.0,0.006]
[1717316301822,0.95198399,67779.0,67778.0,0.006]
[1717316302056,1.01843287,67779.0,67778.0,0.006]
[1717316302465,1.04773299,67779.0,67778.0,0.006]
[1717316302677,1.04773299,67779.0,67774.0,0.04001667]
[1717316302678,0.157547,67775.0,67774.0,0.04001667]
[1717316302923,0.48411699,67775.0,67774.0,0.04001667]
[1717316303272,0.49126748,67775.0,67774.0,0.04001667]
[1717316304258,0.78636148,67775.0,67774.0,0.04001667]
[1717316305301,0.79036148,67775.0,67774.0,0.04101667]
[1717316305820,0.79036148,67775.0,67774.0,0.04201667]
[1717316306022,0.80636148,67775.0,67774.0,0.04201667]
[1717316306158,0.90636148,67775.0,67774.0,0.04201667]
[1717316308221,0.92936148,67775.0,67774.0,0.04201667]
[1717316308451,0.97363254,67775.0,67774.0,0.04201667]
[1717316309347,1.19767052,67775.0,67774.0,0.04201667]
[1717316309573,1.26854711,67775.0,67774.0,0.04201667]
[1717316309784,1.22427605,67775.0,67774.0,0.04201667]
[1717316310923,1.26848222,67775.0,67774.0,0.04201667]
[1717316312299,1.22427605,67775.0,67774.0,0.04201667]
[1717316312754,1.25206,67775.0,67774.0,0.04201667]
[1717316315458,1.29625055,67775.0,67774.0,0.04201667]
[1717316315680,1.25204438,67775.0,67774.0,0.04201667]
[1717316316113,1.1572754,67775.0,67774.0,0.04201667]
[1717316316310,1.25181929,67775.0,67774.0,0.04201667]
[1717316319984,1.25152365,67775.0,67774.0,0.04201667]
[1717316326855,1.35152365,67775.0,67774.0,0.04201667]
[1717316328863,1.2572754,67775.0,67774.0,0.04201667]
[1717316329003,1.35192579,67775.0,67774.0,0.04201667]
[1717316329839,1.25192579,67775.0,67774.0,0.04201667]
[1717316330290,1.35192579,67775.0,67774.0,0.04201667]
[1717316332047,1.25192579,67775.0,67774.0,0.04201667]
[1717316333145,1.35192579,67775.0,67774.0,0.04201667]
[1717316333353,1.4858299,67775.0,67774.0,0.04201667]
[1717316334029,1.3858299,67775.0,67774.0,0.04201667]
[1717316338490,1.1572754,67775.0,67774.0,0.04201667]
[1717316338859,1.384799,67775.0,67774.0,0.04201667]
[1717316340528,1.42894417,67775.0,67774.0,0.04201667]
[1717316340741,1.47874417,67775.0,67774.0,0.04201667]
[1717316342563,1.434599,67775.0,67774.0,0.04201667]
[1717316344388,1.50081675,67775.0,67774.0,0.04201667]
[1717316345586,1.434599,67775.0,67774.0,0.04201667]
[1717316346389,1.76866725,67775.0,67774.0,0.04201667]
[1717316346589,1.58037691,67775.0,67774.0,0.04201667]
[1717316346847,1.68037691,67775.0,67774.0,0.04201667]
[1717316347586,1.66437691,67775.0,67774.0,0.04101667]
[1717316348046,1.69537691,67775.0,67774.0,0.04401667]
[1717316348427,1.66037691,67775.0,67774.0,0.04001667]
[1717316348830,1.71237691,67775.0,67774.0,0.04601667]
[1717316349243,1.69137691,67775.0,67774.0,0.04301667]
[1717316349858,1.72837691,67775.0,67774.0,0.04601667]
[1717316352841,1.57857691,67775.0,67774.0,0.04601667]
[1717316353042,1.62823436,67775.0,67774.0,0.04601667]
[1717316353650,2.02332836,67775.0,67774.0,0.04601667]
[1717316354291,2.15617471,67775.0,67774.0,0.04601667]
[1717316356828,2.15638266,67775.0,67774.0,0.04601667]
[1717316358268,2.02353631,67775.0,67774.0,0.04601667]
[1717316358467,1.97373631,67775.0,67774.0,0.04601667]
[1717316358675,1.87373631,67775.0,67774.0,0.04601667]
[1717316359093,1.92353631,67775.0,67774.0,0.04601667]
[1717316361500,1.6693574,67775.0,67774.0,0.04601667]
[1717316361706,1.97871328,67775.0,67774.0,0.04601667]
[1717316362663,1.6693574,67775.0,67774.0,0.04601667]
[1717316362874,1.97898764,67775.0,67774.0,0.04601667]
[1717316364082,1.97183715,67775.0,67774.0,0.04601667]
[1717316364274,1.89711366,67775.0,67774.0,0.04601667]
[1717316364477,1.97190025,67775.0,67774.0,0.04601667]
[1717316364888,1.92210025,67775.0,67774.0,0.04601667]
[1717316365236,1.97190025,67775.0,67774.0,0.04601667]
[1717316367396,1.73910025,67775.0,67774.0,0.04601667]
[1717316378168,1.68930025,67775.0,67774.0,0.04601667]
[1717316378368,1.73910025,67775.0,67774.0,0.04601667]
[1717316380899,1.68930025,67775.0,67774.0,0.04601667]
[1717316381105,1.73910025,67775.0,67774.0,0.04601667]
[1717316383105,1.73910025,67775.0,67774.0,0.12641667]
[1717316385276,1.68930025,67775.0,67774.0,0.12641667]
[1717316385477,1.73910025,67775.0,67774.0,0.12641667]
[1717316389744,1.69191477,67775.0,67774.0,0.12641667]
[1717316389956,1.74008094,67775.0,67774.0,0.12641667]
[1717316394154,1.69028094,67775.0,67774.0,0.12641667]
[1717316394355,1.74008094,67775.0,67774.0,0.12641667]
[1717316400094,1.74008094,67775.0,67774.0,0.04601667]
[1717316406616,1.73008094,67775.0,67774.0,0.04601667]
[1717316406819,1.74008094,67775.0,67774.0,0.04601667]
[1717316407839,1.81898094,67775.0,67774.0,0.04601667]
[1717316408010,1.91898094,67775.0,67774.0,0.04601667]
[1717316408239,1.95185113,67775.0,67774.0,0.04601667]
[1717316408650,2.05185113,67775.0,67774.0,0.04601667]
[1717316409714,1.95185113,67775.0,67774.0,0.04601667]
[1717316410308,1.82628385,67775.0,67774.0,0.04601667]
[1717316410516,1.76775606,67775.0,67774.0,0.04601667]
[1717316410762,1.81755606,67775.0,67774.0,0.04601667]
[1717316412390,1.68885606,67775.0,67774.0,0.04601667]
[1717316412550,1.73865606,67775.0,67774.0,0.04601667]
[1717316415970,1.68885606,67775.0,67774.0,0.04601667]
[1717316416183,1.73865606,67775.0,67774.0,0.04601667]
[1717316421777,1.83865606,67775.0,67774.0,0.04601667]
[1717316423554,1.95430393,67775.0,67774.0,0.04601667]
[1717316423893,2.02970393,67775.0,67774.0,0.04601667]
[1717316426214,2.05010674,67775.0,67774.0,0.04601667]
[1717316426377,2.15010674,67775.0,67774.0,0.04601667]
[1717316426612,2.10529176,67775.0,67774.0,0.04601667]
[1717316426827,2.05256645,67775.0,67774.0,0.04601667]
[1717316428440,1.99276645,67775.0,67774.0,0.04601667]
[1717316428660,1.67406645,67775.0,67774.0,0.12101667]
[1717316428859,1.68022237,67775.0,67774.0,0.12101667]
[1717316429070,1.72770044,67775.0,67774.0,0.12101667]
[1717316430137,1.71770044,67775.0,67774.0,0.12101667]
[1717316430649,1.72770044,67775.0,67774.0,0.12101667]
[1717316431337,1.67790044,67775.0,67774.0,0.12101667]
[1717316431723,1.72770044,67775.0,67774.0,0.12101667]
[1717316432356,1.7281571,67775.0,67774.0,0.12101667]
[1717316433323,1.8035571,67775.0,67774.0,0.04601667]
[1717316433679,1.86102853,67775.0,67774.0,0.04601667]
[1717316434899,1.6370917,67775.0,67774.0,0.04601667]
[1717316435024,1.86426186,67775.0,67774.0,0.04601667]
[1717316436306,1.7894485,67775.0,67774.0,0.04601667]
[1717316436476,1.86406261,67775.0,67774.0,0.04601667]
[1717316439408,1.73119118,67775.0,67774.0,0.04601667]
[1717316442368,1.86406261,67775.0,67774.0,0.04601667]
[1717316443101,1.73119118,67775.0,67774.0,0.04601667]
[1717316446307,1.8640656,67775.0,67774.0,0.04601667]
[1717316446688,1.73119118,67775.0,67774.0,0.04601667]
[1717316464468,1.73104627,67775.0,67774.0,0.04601667]
[1717316471946,1.86392069,67775.0,67774.0,0.04601667]
[1717316474650,1.96392069,67775.0,67774.0,0.04601667]
[1717316474852,1.83104627,67775.0,67774.0,0.04601667]
[1717316476335,1.73104627,67775.0,67774.0,0.04601667]
[1717316476796,1.83104627,67775.0,67774.0,0.04601667]
[1717316477019,1.73104627,67775.0,67774.0,0.04601667]
[1717316478167,1.83104627,67775.0,67774.0,0.04601667]
[1717316479136,1.73104627,67775.0,67774.0,0.04601667]
[1717316479296,1.83104627,67775.0,67774.0,0.04601667]
[1717316479879,1.81611804,67775.0,67774.0,0.04601667]
[1717316481097,1.94902716,67775.0,67774.0,0.04601667]
[1717316483154,1.81611804,67775.0,67774.0,0.04601667]
[1717316483768,1.66631804,67775.0,67774.0,0.04601667]
[1717316483922,1.71611804,67775.0,67774.0,0.04601667]
[1717316484758,1.66240225,67775.0,67774.0,0.04601667]
[1717316485002,1.71220225,67775.0,67774.0,0.04601667]
[1717316486223,1.49996032,67775.0,67774.0,0.04601667]
[1717316486566,1.71108895,67775.0,67774.0,0.04601667]
[1717316486971,1.66128895,67775.0,67774.0,0.04601667]
[1717316487151,1.71026371,67775.0,67774.0,0.04601667]
[1717316488123,1.66046371,67775.0,67774.0,0.04601667]
[1717316488323,1.71026371,67775.0,67774.0,0.04601667]
[1717316490220,1.66046371,67775.0,67774.0,0.04601667]
[1717316490425,1.70055086,67775.0,67774.0,0.04601667]
[1717316490669,1.79364714,67775.0,67774.0,0.04601667]
[1717316490897,1.84344714,67775.0,67774.0,0.04601667]
[1717316491808,1.84696233,67775.0,67774.0,0.04601667]
[1717316492413,1.71406605,67775.0,67774.0,0.04601667]
[1717316492885,1.71417476,67775.0,67774.0,0.04601667]
[1717316493269,1.66437476,67775.0,67774.0,0.04601667]
[1717316493480,1.71417476,67775.0,67774.0,0.04601667]
[1717316493874,1.65437476,67775.0,67774.0,0.04601667]
[1717316494258,1.70417476,67775.0,67774.0,0.04601667]
[1717316495273,1.71417476,67775.0,67774.0,0.04601667]
[1717316496239,1.71561834,67775.0,67774.0,0.04601667]
[1717316497252,1.71554615,67775.0,67774.0,0.04601667]
[1717316500571,1.71536052,67775.0,67774.0,0.04601667]
[1717316520071,1.66556052,67775.0,67774.0,0.04601667]
[1717316520252,1.71536052,67775.0,67774.0,0.04601667]
[1717316522016,1.84824797,67775.0,67774.0,0.04601667]
[1717316524379,1.77420815,67775.0,67774.0,0.04601667]
[1717316524594,1.84825447,67775.0,67774.0,0.04601667]
[1717316524789,1.63242489,67775.0,67774.0,0.04601667]
[1717316525039,1.84511056,67775.0,67774.0,0.04601667]
[1717316527045,1.83511056,67775.0,67774.0,0.04601667]
[1717316527282,1.83511056,67775.0,67774.0,0.12131667]
[1717316527453,1.78531056,67775.0,67774.0,0.12131667]
[1717316527685,1.65242311,67775.0,67774.0,0.12131667]
[1717316527869,1.70222311,67775.0,67774.0,0.12131667]
[1717316528252,1.2115512,67775.0,67774.0,0.12131667]
[1717316528457,1.2115512,67775.0,67774.0,0.27491667]
[1717316529227,1.08538854,67775.0,67774.0,0.27491667]
[1717316529474,1.19610757,67775.0,67774.0,0.27491667]
[1717316530471,1.41111507,67775.0,67774.0,0.27491667]
[1717316530675,1.30039604,67775.0,67774.0,0.27491667]
[1717316531281,1.25306911,67775.0,67774.0,0.27491667]
[1717316532285,1.41098045,67775.0,67774.0,0.27491667]
[1717316534484,1.30026142,67775.0,67774.0,0.27491667]
[1717316534706,1.35006142,67775.0,67774.0,0.27491667]
[1717316535481,1.30286911,67775.0,67774.0,0.27491667]
[1717316535894,1.25306911,67775.0,67774.0,0.27491667]
[1717316536302,1.30286911,67775.0,67774.0,0.27491667]
[1717316536901,1.35024951,67775.0,67774.0,0.27491667]
[1717316537464,1.46093629,67775.0,67774.0,0.27491667]
[1717316537862,1.46155162,67775.0,67774.0,0.27491667]
[1717316540297,1.35086669,67775.0,67774.0,0.27491667]
[1717316543373,1.35084339,67775.0,67774.0,0.27491667]
[1717316544537,1.35084174,67775.0,67774.0,0.27491667]
[1717316546461,1.30104174,67775.0,67774.0,0.27491667]
[1717316546670,1.35084174,67775.0,67774.0,0.27491667]
[1717316548546,1.27680951,67775.0,67774.0,0.27491667]
[1717316548941,1.35074763,67775.0,67774.0,0.27491667]
[1717316553807,1.30094763,67775.0,67774.0,0.28761667]
[1717316554232,1.3422124,67775.0,67774.0,0.28761667]
[1717316557291,1.38942517,67775.0,67774.0,0.28761667]
[1717316558319,1.38794039,67775.0,67774.0,0.28761667]
[1717316558717,1.31405978,67775.0,67774.0,0.28761667]
[1717316558923,1.38783877,67775.0,67774.0,0.28761667]
[1717316559322,1.38783903,67775.0,67774.0,0.28761667]
[1717316560220,1.38785246,67775.0,67774.0,0.28761667]
[1717316560661,1.38758571,67775.0,67774.0,0.28761667]
[1717316561208,1.30215464,67775.0,67774.0,0.28761667]
[1717316561432,1.38753917,67775.0,67774.0,0.28761667]
[1717316567685,1.38754414,67775.0,67774.0,0.28761667]
[1717316570659,1.29900366,67775.0,67774.0,0.28761667]
[1717316572105,1.22521124,67775.0,67774.0,0.28761667]
[1717316572305,1.29904927,67775.0,67774.0,0.28761667]
[1717316573450,1.40972487,67775.0,67774.0,0.28761667]
[1717316575021,1.29904927,67775.0,67774.0,0.28761667]
[1717316575228,1.40979679,67775.0,67774.0,0.28761667]
[1717316581122,1.40981231,67775.0,67774.0,0.28761667]
[1717316581334,1.40981231,67775.0,67774.0,0.04601667]
[1717316581512,1.27606839,67775.0,67774.0,0.28601667]
[1717316581708,1.22883495,67775.0,67774.0,0.28601667]
[1717316583833,1.31742646,67775.0,67774.0,0.28601667]
[1717316590923,1.29526908,67775.0,67774.0,0.28601667]
[1717316592400,1.29525009,67775.0,67774.0,0.28601667]
[1717316592606,0.80300213,67775.0,67774.0,0.28601667]
[1717316592860,0.91371328,67775.0,67774.0,0.28601667]
[1717316593407,0.80319363,67775.0,67774.0,0.28601667]
[1717316593603,0.7176176,67775.0,67774.0,0.28601667]
[1717316594044,0.6806176,67775.0,67774.0,0.28301667]
[1717316594254,0.74178449,67775.0,67774.0,0.28001667]
[1717316594456,0.77078449,67775.0,67774.0,0.28301667]
[1717316594659,0.77078449,67775.0,67774.0,0.28601667]
[1717316594660,0.79178449,67775.0,67774.0,0.28601667]
[1717316596253,0.53524343,67775.0,67774.0,0.28601667]
[1717316596579,0.53024343,67775.0,67774.0,0.28601667]
[1717316597340,0.59662707,67775.0,67774.0,0.28601667]
[1717316597658,0.59662725,67775.0,67774.0,0.28601667]
[1717316602197,0.53024343,67775.0,67774.0,0.28601667]
[1717316602398,0.50924343,67775.0,67774.0,0.28301667]
[1717316602809,0.50924343,67775.0,67774.0,0.28601667]
[1717316602810,0.52524343,67775.0,67774.0,0.28601667]
[1717316603019,0.52524343,67775.0,67774.0,0.28301667]
[1717316603257,0.52524343,67775.0,67774.0,0.34281667]
[1717316603258,0.28661222,67775.0,67774.0,0.34281667]
[1717316603460,0.28661222,67775.0,67774.0,0.34581667]
[1717316603461,0.061,67775.0,67774.0,0.34581667]
[1717316603668,0.032,67775.0,67774.0,0.34281667]
[1717316603982,0.058,67775.0,67774.0,0.34581667]
[1717316604387,0.032,67775.0,67774.0,0.34281667]
[1717316604766,0.037,67775.0,67774.0,0.34281667]
[1717316605606,0.005,67775.0,67774.0,0.33981667]
[1717316605813,0.012,67775.0,67774.0,0.33981667]
[1717316606486,0.012,67775.0,67774.0,0.29001667]
[1717316606654,0.012,67775.0,67774.0,0.33981667]
[1717316614427,0.012,67775.0,67774.0,0.32981667]
[1717316614667,0.012,67775.0,67774.0,0.33981667]
[1717316619327,0.012,67775.0,67774.0,0.29001667]
[1717316619840,0.012,67775.0,67774.0,0.33981667]
[1717316625281,0.01845623,67775.0,67774.0,0.33981667]
[1717316628604,0.012,67775.0,67774.0,0.33981667]
[1717316628805,0.012,67775.0,67774.0,0.48559458]
[1717316632934,0.012,67775.0,67774.0,0.63870259]
[1717316634425,0.012,67775.0,67774.0,0.63870189]
[1717316643696,0.01845181,67775.0,67774.0,0.63870189]
[1717316643903,0.01845181,67775.0,67774.0,0.48559458]
[1717316645497,0.01845181,67775.0,67774.0,0.63870192]
[1717316645902,0.01845181,67775.0,67774.0,0.39870192]
[1717316646131,0.01845181,67775.0,67774.0,0.63190226]
[1717316646753,0.012,67775.0,67774.0,0.63190226]
[1717316654823,0.012,67775.0,67774.0,0.62190226]
[1717316655026,0.012,67775.0,67774.0,0.38870226]
[1717316656378,0.012,67775.0,67774.0,0.23559458]
[1717316656587,0.012,67775.0,67774.0,0.38870034]
[1717316657190,0.012,67775.0,67774.0,0.23559458]
[1717316657384,0.012,67775.0,67774.0,0.38870036]
[1717316661012,0.012,67775.0,67774.0,0.38870141]
[1717316670746,0.012,67775.0,67774.0,0.23559458]
[1717316670949,0.012,67775.0,67774.0,0.3887014]
[1717316674203,0.00936612,67775.0,67774.0,0.3887014]
[1717316675161,0.00936612,67775.0,67774.0,0.23559458]
[1717316676239,0.00936612,67775.0,67774.0,0.24559458]
[1717316677391,0.00936612,67775.0,67774.0,0.23559458]
[1717316679901,0.00936612,67775.0,67774.0,0.18579458]
[1717316680123,0.00936612,67775.0,67774.0,0.24559458]
[1717316680534,0.00936612,67775.0,67774.0,0.23559458]
[1717316680880,0.00936612,67775.0,67774.0,0.24559458]
[1717316683814,0.00936612,67775.0,67774.0,0.23559458]
[1717316686194,0.00936612,67775.0,67774.0,0.38870133]
[1717316687274,0.00936612,67775.0,67774.0,0.23559458]
[1717316687642,0.00936612,67775.0,67774.0,0.38870132]
[1717316688196,0.00936612,67775.0,67774.0,0.38870134]
[1717316696141,0.00936612,67775.0,67774.0,0.62670134]
[1717316696583,0.00936612,67775.0,67774.0,0.63670134]
[1717316701222,0.00236612,67775.0,67774.0,0.63670134]
[1717316701695,0.00536612,67775.0,67774.0,0.63670134]
[1717316701842,0.003,67775.0,67774.0,0.63670134]
[1717316702246,0.004,67775.0,67774.0,0.48359458]
[1717316702442,0.004,67775.0,67774.0,0.63670132]
[1717316702645,0.004,67775.0,67774.0,0.58690132]
[1717316702893,0.004,67775.0,67774.0,0.63670132]
[1717316704073,0.004,67775.0,67774.0,0.48359458]
[1717316704074,0.07539574,67775.0,67774.0,0.48359458]
[1717316704277,0.04829694,67775.0,67774.0,0.48359458]